Workbook

Sheet Cover Page
D1: Add company logo
N2: SEPA v1
B8: Add photo
N13: Notes:
N14: This template may require adjustments by individual operators to meet specific reporting requirements as defined in the site Permit(s)
B29: Annual Performance Report 2023
B31: Permit PPC/A/1136072/CP01
B33: Millerhill RERC
B37: FCC Waste Services (UK) Ltd
B39: Year: | C39: 2023
B41: Address: | C41: Whitehill Road, Edinburgh, EH22 1SX
B43: Tel: | C43: REDACTED
B45: Email: | C45: REDACTED
B47: Prepared by: | C47: REDACTED | F47: Position: | G47: REDACTED
B49: Approved by: | C49: REDACTED | F49: Position: | G49: REDACTED
B51: Version: | C51: 1
B53: Issue Date: | C53: 2024-01-30

Sheet Contents
A1: =+'Cover Page'!$B$29 -> Annual Performance Report 2023 | E1: =+'Cover Page'!$B$33 -> Millerhill RERC
A3: Contents | K3: Notes:
A4: Section | B4: Subject | H4: Page | K4: Section references and Page nos. to be inserted
B5: Facility Information | K5: Sections and Subjects may require adjustment by individual operators to meet specific reporting requirements as defined in the sites Permit(s)
B6: Operational Summary
B7: Operational Data
B8: Performance Form 1
B9: Energy Form 1
B10: Permit Compliance
B11: Improvements
B12: Public Liasion
B13: Residue Quality - Optional
B14: Emissions to Water
B15: Emissions to Air (periodically monitored)
B16: Emissions to Air (continuously monitored)
B17: Hydrogen Chloride emissions
B18: Sulphur Dioxdie emsissions
B19: Oxides of Notrigen emissions
B20: Total Organic Carbon emissions
B21: Particulate Matter emissions
B22: Carbon Monoxide emissions
B23: Ammonia emissions
A26: Version Control
A27: Section | B27: Information | H27: Date
A34: Distribution
A35: Copy | B35: Name, Role | H35: No.
A44: This report is required under the Industrial Emissions Directive’s Article 55(2) requirements on reporting and public information on waste incineration plants and co-incineration plants, which require the operator to produce an annual report on the functioning and monitoring of the plant and make it available to the public.

Sheet Facility Info
A1: =+'Cover Page'!$B$29 -> Annual Performance Report 2023 | E1: =+'Cover Page'!$B$33 -> Millerhill RERC
A3: Plant Description and Design | K3: Notes:
A5: The Millerhill Recycling and Energy Recover Centre (RERC) is a single-line thermal treatment plant utilising moving grate technology. The aggregate amount of the wastes specified in Condition 4.1.1 that may be incinerated in the Permitted Installation is up to 189,500 tonnes in any calendar year. In 2022 and in 2023 the plant processed approximately 157,000 tonnes pa of residual waste, ~97% of which comes from households within the Edinburgh, Midlothian and East Lothian regions. Millerhill RERC currently exports ~13MW of electricity with the potential to export up to 20MW of heat. | K5: Include summary of plant design, design capacity, no. of combustion lines, electrical and heat capacity and any other general information that descibes the facility, its location and purpose
A20: Summary of Operational Processes and Procedures
A22: Waste is received within the tipping hall and stored within the bunker. Waste can be pre-treated or fed directly into the boiler where combustion takes place in accordance with the requirements of the waste incineration directive. Flue gases are treated using ammonia injection within the combustion zone and following heat recovery activated carbon and lime are added to complete the treatment process. The flue gas is passed through bag filters to remove fine particulate before being discharged to atmosphere. The heat generated within the boiler raises high pressure steam from which the energy is recovered through a turbine. The energy generates power allowing the plant to export 13 MW of power once the parasitic load of the plant has been supplied. The potential to export heat is available with bleeds from the turbine having the capacity to meet a heat demand (at the expense of power) of 20 MW. Millerhill RERC have achieved certification to the standards: ISO 14001, ISO 9001, ISO 45001, and ISO 50001 | K22: Include summary of key processes and procedures such as (but not limited to); waste reception, control rooms, grate, bed and bolier, energy & heat generation, cooling systems, residue management, emission controls, health and safety systems, maintenance

Sheet Operational Data
A1: =+'Cover Page'!$B$29 -> Annual Performance Report 2023 | E1: =+'Cover Page'!$B$33 -> Millerhill RERC
A3: Operational Data | K3: Notes:
A4: Plant Size | D4: tonnes pa | F4: MWth | H4: MWe | K4: * - RDF to include SRF
A5: No. of combustion lines | B5: 1 | D5: No. of Turbines: | F5: 1 | K5: ** - CHP plants only
A7: Waste types received | B7: Unit | C7: Q1 | D7: Q2 | E7: Q3 | F7: Q4 | G7: Year Total | H7: %
A8: Household / Local Authority | B8: tonnes | C8: 39692.52 | D8: 35512.02 | E8: 40855.94 | F8: 40716.95 | G8: =SUM(C8:F8) -> 156777.43 | H8: =IF(G8>0,G8/$G$18,"-") -> 0.9618332801 | K8: Availabiity Definition: 'the availability of a line is to be calculated by the number of hours the line reported Continuously Monitored emission levels to the Regulator through the calendar year divided by the total number of hours in that year. The overall plant availability is calculated as the Mean of all lines in the plant. For clarity this includes periods of Other Than Normal Operating Conditions (OTNOC) and abnormal operation.' Rationale: The primary function of an Energy from Waste facility is the disposal of waste. It follows therefore that the availability of a plant is determined by the period of time a facility spends undertaking this activity.
A9: Commercial & Industrial | C9: 2809.98 | D9: 3.62 | E9: 1306.28 | F9: 1912.54 | G9: =SUM(C9:F9) -> 6032.42 | H9: 0.03700904088
A10: Hazardous | C10: 0 | D10: 0 | E10: 0 | F10: 0 | G10: 0 | H10: -
A11: Clinical | C11: 44.06 | D11: 40.4 | E11: 54.62 | F11: 49.62 | G11: 188.7 | H11: 0.00115767901
A12: Waste wood (biomass) | G12: 0 | H12: -
A13: Refuse Derived Fuel * - H'hold/LA | G13: =SUM(C13:F13) -> 0 | H13: -
A14: Refuse Derived Fuel * - C&I | G14: 0 | H14: -
A15: Other [Please specify] | G15: 0 | H15: -
A16: Other [Please specify]
A17: Other [Please specify]
A18: Total waste received | C18: =SUM(C8:C17) -> 42546.56 | D18: =SUM(D8:D17) -> 35556.04 | E18: =SUM(E8:E17) -> 42216.84 | F18: =SUM(F8:F17) -> 42679.11 | G18: =SUM(G8:G17) -> 162998.55 | H18: 1
A19: Rejected Waste | G19: =SUM(C19:F19) -> 0 | H19: =IF(G19>0,G19/$G$18,"-") -> -
A20: Unprocessed waste transferred out | G20: =SUM(C20:F20) -> 0 | H20: =IF(G20>0,G20/$G$18,"-") -> -
A21: Total waste combusted | C21: =C18-SUM(C19:C20) -> 42546.56 | D21: =D18-SUM(D19:D20) -> 35556.04 | E21: 42216.84 | F21: 42679.11 | G21: =SUM(C21:F21) -> 162998.55 | H21: =IF(G21>0,G21/$G$18,"-") -> 1
A23: Energy Useage / Export | B23: Unit | C23: Q1 | D23: Q2 | E23: Q3 | F23: Q4 | G23: Year Total | H23: KWh/te
A24: Power Generated | B24: MWh | C24: 29876 | D24: 23744 | E24: 29691 | F24: 28921 | G24: =SUM(C24:F24) -> 112232 | H24: =IF(G24>0,G24*1000/$G$21,"-") -> 688.5460024
A25: Power Exported | C25: 27122 | D25: 21527 | E25: 26916 | F25: 26091 | G25: =SUM(C25:F25) -> 101656 | H25: =IF(G25>0,G25*1000/$G$21,"-") -> 623.6619896
A26: Power Used on site | C26: 2754 | D26: 2482 | E26: 2777 | F26: 2972 | G26: =SUM(C26:F26) -> 10985 | H26: =IF(G26>0,G26*1000/$G$21,"-") -> 67.39323755
A27: Power Imported | C27: 0 | D27: 138 | E27: 1 | F27: 71 | G27: 210 | H27: =IF(G27>0,G27*1000/$G$21,"-") -> 1.288355019
A28: Parasitic Load | B28: % | C28: =IF(C24>0,1-C25/(C24+C27),"-") -> 0.09218101486 | D28: =IF(D24>0,1-D25/(D24+D27),"-") -> 0.09860983167 | E28: =IF(E24>0,1-E25/(E24+E27),"-") -> 0.09349319682 | F28: =IF(F24>0,1-F25/(F24+F27),"-") -> 0.1000620861 | G28: =IF(G24>0,1-G25/(G24+G27),"-") -> 0.09592501023
A29: Thermal Energy Produced ** | B29: MWh | G29: =SUM(C29:F29) -> 0 | H29: =IF(G29>0,G29*1000/$G$21,"-") -> -
A30: Thermal Energy Exported ** | G30: 0 | H30: =IF(G30>0,G30*1000/$G$21,"-") -> -
A31: R1 value | G31: Design / Operational / n/a
A33: Waste Disposal & Recovery | B33: Unit | C33: Q1 | D33: Q2 | E33: Q3 | F33: Q4 | G33: Year Total | H33: % inputs
A34: APC Residues - produced | B34: tonnes | C34: 879.56 | D34: 796.34 | E34: 870.78 | F34: 916.74 | G34: =SUM(C34:F34) -> 3463.42 | H34: =IF(G34>0,G34/$G$21,"-") -> 0.02124816448
A35: IBA - produced | C35: 10462.66 | D35: 9264.89 | E35: 10781.86 | F35: 10197.92 | G35: 40707.33 | H35: =IF(G35>0,G35/$G$21,"-") -> 0.2497404425
A36: Metals recycling | C36: 21.5 | D36: 0 | E36: 0 | F36: 0 | G36: =SUM(C36:F36) -> 21.5 | H36: 0.0001319030139
A37: Other | C37: 0 | D37: 0 | E37: 0 | F37: 0 | G37: =SUM(C37:F37) -> 0 | H37: -
A38: Other | C38: 0 | D38: 0 | E38: 0 | F38: 0 | G38: 0 | H38: -
A39: Other | C39: 0 | D39: 0 | E39: 0 | F39: 0 | G39: 0 | H39: -
A41: Raw Material Usage | B41: Unit | C41: Q1 | D41: Q2 | E41: Q3 | F41: Q4 | G41: Year Total | H41: kg or Ltr /te
A42: Mains Water | B42: ltrs | C42: 4850000 | D42: 4753000 | E42: 5358000 | F42: 5419000 | G42: =SUM(C42:F42) -> 20380000 | H42: =IF(G42>0,G42/$G$21,"-") -> 125.0317871
A43: Other Water | B43: ltrs | G43: 0 | H43: =IF(G43>0,G43/$G$21,"-") -> -
A44: Ammonia | B44: kgs | C44: 60600 | D44: 42500 | E44: 43900 | F44: 65400 | G44: 212400 | H44: 1.303079076
A45: Urea | B45: kgs | G45: =SUM(C45:F45) -> 0 | H45: -
A46: Activated Carbon | B46: kgs | C46: 9790 | D46: 8610 | E46: 11110 | F46: 10110 | G46: 39620 | H46: 0.2430696469
A47: Lime / hydrated lime | B47: kgs | C47: 301700 | D47: 343600 | E47: 352300 | F47: 360800 | G47: 1358400 | H47: 8.333816466
A48: Fuel oil | B48: ltrs | C48: 3510 | D48: 54740 | E48: 1090 | F48: 69850 | G48: 129190 | H48: 0.7925837377
A49: Gas | B49: cf | C49: 0 | D49: 0 | E49: 0 | F49: 0 | G49: 0
A50: Other | C50: 0 | D50: 0 | E50: 0 | F50: 0 | G50: 0
A52: Summary | B52: Line/Unit | C52: Q1 | D52: Q2 | E52: Q3 | F52: Q4 | G52: Year Total | J52: Hrs in year
A53: Availability of waste combustion by line, hrs | B53: =+B5 -> 1 | C53: 2160 | D53: 1777 | E53: 2208 | F53: 2134.04 | G53: =SUM(C53:F53) -> 8279.04 | H53: =G53/J53 -> 0.9450958904 | J53: 8760
B54: 2 | G54: 0 | H54: x %
B55: 3 | G55: 0 | H55: x %
B56: 4 | G56: 0 | H56: x %
B57: 5 | G57: =SUM(C57:F57) -> 0 | H57: x %
A58: Overall Availability, mean avg. of all lines, hrs | G58: N/A | H58: x %
A59: Hours of turbine operations, hrs | B59: 1 | C59: 2160 | D59: 1735.68 | E59: 2207.47 | F59: 2103.91 | G59: 8207.06 | H59: =G59/J53 -> 0.9368789954
A60: Hours of turbine operations, hrs | B60: 2 | G60: 0 | H60: x %
A61: Hours of heat / steam export | G61: 0 | H61: =IF(B61>0,G60/J53,"n/a") -> n/a
A62: Net Calorific Value of waste | B62: MJ/kg | H62: -
A63: Abnormal Events | B63: qty. | G63: 0 | H63: =IF(G63>0,"yes","no") -> no
A64: Abnormal operation | B64: hours | G64: 0 | H64: =+(G64)/J53 -> 0
A65: Permit Breaches | B65: qty. | G65: 0 | H65: =IF(G65>0,"yes","no") -> no

Sheet Operational Summary
A1: =+'Cover Page'!$B$29 -> Annual Performance Report 2023 | E1: =+'Cover Page'!$B$33 -> Millerhill RERC
A3: Summary of Plant Operations and Maintenance during the reporting year | K3: Notes:
A5: The plant has operated well throughout the year. Availability was good at nearly 95%, being higher than in 2022. Throughout the year emissions have been well within the permitted levels. The plant is managed 24/7 by an Operations team, led by a Shift Team Leader. Daily morning meetings take place in which the operation over the previous shift is discussed, along with any planned maintenance tasks, contractors, training etc. that is planned for that day. Operational checks are conducted for each shift (2 x 24 hours), including a daily site inspection. This is supplemented by a more comprehensive weekly site inspection. The routine and preventative maintenance of the plant is governed by a specialist software program that generates tasks to be undertaken on a daily, weekly, monthly and annual basis. In support of the general maintenance routine, site specific maintenance and call off contracts have been issued for key items of plant and equipment. National contracts are in place for other services and equipment. A planned outage was completed in April/May to undertake the majority of the preventative maintenance programme. The plant was also shut down for 1 day to clear a blockage in the ash extractor on 9th December. There have been no occasions where the minimum operational requirements could not be met. | K5: Include summary of key operational and/or mainteanance activity undertaken in the year, such as any major component upgrades and/or replacements
A29: Summary of Residue Handling for the reporting year
A31: FCC Millerhill produces Incinerator Bottom Ash (IBA), which consists of the inorganic, non-combustible fraction of the waste, and Air Pollution Control residue (APCr), which is a product of the flue gas cleaning process. The IBA is non-hazardous and can be used for a number of end uses, subject to strict controls. The APCr is a hazardous material and must be appropriately disposed of. IBA is taken to FCC's Greengairs site, where it is stored on a dedicated pad pending processing. Processing takes place periodically by an appropriately permitted company which uses a mobile separation plant to separate the IBA into ferrous and non-ferrous metals and various size fractions. Metals are recycled and the resultant aggregate is used where possible in road building and infrastructure within the permitted area of the landfill site itself. FCC Millerhill follows the ESA's IBA Sampling Protocol and conducts hazard analysis on representative samples of IBA twice a month. To date, none of the samples have been classed as hazardous. APCr is discharged directly from storage silos into a receiving vehicle and taken to an appropriately permitted site where it is used to neutralise alkaline wastes and then landfilled. | K31: Include in here a summary of residue handling regimes and destinations

Sheet Perf. Form 1
A1: =+'Cover Page'!C39 -> 2023 | B1: Annual Reporting Performance Form 1
A3: =+'Cover Page'!B31 -> Permit PPC/A/1136072/CP01 | F3: Operator: | G3: =+'Cover Page'!B37:I37 -> 0
A4: Facility: | B4: =+'Cover Page'!B33:I33 -> Millerhill RERC | F4: Form: | G4: Performance 1
A6: Reporting Period from: | D6: 2023-01-01 | F6: to: | G6: 2023-12-31
A8: =+A1 -> 2023 | B8: Annual Reporting of Waste Disposal and Recovery
A9: Waste Description | C9: Disposal Route(s) | E9: Disposal Tonnes | G9: Recovery Tonnes | I9: % / tonne of waste incinerated
A10: 1) Hazardous Wastes
A11: APC Residues | C11: D9 | E11: 3463.4 | I11: =IF((E11+G11)>0,(E11+G11)/'Operational Data'!$G$21, "-") -> 0.02124804178
A12: IBA | I12: =IF((E12+G12)>0,(E12+G12)/'Operational Data'!$G$21, "-") -> -
I13: =IF((E13+G13)>0,(E13+G13)/'Operational Data'!$G$21, "-") -> -
I14: =IF((E14+G14)>0,(E14+G14)/'Operational Data'!$G$21, "-") -> -
A15: Total Hazardous Waste | E15: =SUM(E11:F14) -> 3463.4 | G15: =SUM(G11:H14) -> 0 | I15: =IF((E15+G15)>0,(E15+G15)/'Operational Data'!$G$21, "-") -> 0.02124804178
A17: 2) Non-Hazardous Wastes
A18: IBA | C18: R4 | G18: 40707.3 | I18: =IF((E18+G18)>0,(E18+G18)/'Operational Data'!$G$21, "-") -> 0.2497402584
A19: Ferrous Metal | C19: R4 | G19: 21.5 | I19: =IF((E19+G19)>0,(E19+G19)/'Operational Data'!$G$21, "-") -> 0.0001319030139
A20: Process Water | C20: D08 | E20: 182.7 | I20: =IF((E20+G20)>0,(E20+G20)/'Operational Data'!$G$21, "-") -> 0.001120868867
I21: =IF((E21+G21)>0,(E21+G21)/'Operational Data'!$G$21, "-") -> -
I22: =IF((E22+G22)>0,(E22+G22)/'Operational Data'!$G$21, "-") -> -
A23: Total Non-Hazardous Waste | E23: =SUM(E18:F22) -> 182.7 | G23: =SUM(G18:H22) -> 40728.8 | I23: =IF((E23+G23)>0,(E23+G23)/'Operational Data'!$G$21, "-") -> 0.2509930303
A24: TOTAL WASTE | E24: =+E23+E15 -> 3646.1 | G24: =+G23+G15 -> 40728.8 | I24: =IF((E24+G24)>0,(E24+G24)/'Operational Data'!$G$21, "-") -> 0.2722410721
A26: Operator’s comments :
A31: =+A1 -> 2023 | B31: Annual Reporting of Water and Other Raw Material Usage
A32: Raw Material | E32: Usage | G32: Unit | H32: Specific Useage | J32: Unit
A33: Mains Water | E33: =+'Operational Data'!G42 -> 20380000 | G33: m3 | H33: =IF(E33>0,E33/'Operational Data'!$G$21,"-") -> 125.0317871 | J33: m3/te
A34: Total Water | E34: =+'Operational Data'!G43+'Operational Data'!G42 -> 20380000 | G34: m3 | H34: =IF(E34>0,E34/'Operational Data'!$G$21,"-") -> 125.0317871 | J34: m3/te
A35: Urea / Ammonia | E35: =+'Operational Data'!G44 -> 212400 | G35: kg | H35: =IF(E35>0,E35/'Operational Data'!$G$21,"-") -> 1.303079076 | J35: kg/te
A36: Activated Carbon | E36: =+'Operational Data'!G46 -> 39620 | G36: kg | H36: =IF(E36>0,E36/'Operational Data'!$G$21,"-") -> 0.2430696469 | J36: kg/te
A37: Lime / hydrated lime / Sodium Bicarb. | E37: =+'Operational Data'!G47 -> 1358400 | G37: kg | H37: =IF(E37>0,E37/'Operational Data'!$G$21,"-") -> 8.333816466 | J37: kg/te
A39: Operator’s comments :
A43: =+A31 -> 2023 | B43: Annual Reporting of other performance indicators
A44: Parameter | C44: Results by Line
C45: A1 | D45: A2 | E45: A3 | F45: A4 | G45: A5 | I45: Turbine 1 | J45: Turbine 2
A46: Operating hours for the year, hours | C46: 8279
A47: Number of periods of abnormal operation, qty. | C47: 0
A48: Cumulative hours of abnormal operation for this year, hours | C48: 0
A50: Operator’s comments :
A54: Signed: | C54: REDACTED | G54: Date: | H54: 2024-01-24

Sheet Energy Form 1
A1: =+'Cover Page'!C39 -> 2023 | B1: Annual Reporting of Energy Usage/Export
A3: =+'Cover Page'!B31 -> Permit PPC/A/1136072/CP01 | F3: Operator: | G3: FCC Waste Services (UK) Ltd
A5: Facility: | B5: =+'Cover Page'!B33:I33 -> Millerhill RERC | F5: Form: | G5: Energy 1
A7: Reporting Period from: | D7: =+'Perf. Form 1'!D6:E6 -> 2023-01-01 | F7: to: | G7: =+'Perf. Form 1'!G6:H6 -> 2023-12-31
A9: Energy Source | D9: Energy Usage | F9: Unit | G9: Specific Useage (KWh/tonne incinerated
A10: Electricity Produced | D10: =+'Operational Data'!G24 -> 112232 | F10: MWh | G10: =+'Operational Data'!H24 -> 688.5460024
A11: Electricity Imported | D11: =+'Operational Data'!G27 -> 210 | F11: MWh | G11: =+'Operational Data'!H27 -> 1.288355019
A12: Electricity Exported | D12: =+'Operational Data'!G25 -> 101656 | F12: MWh | G12: =+'Operational Data'!H25 -> 623.6619896
A13: Diesel | D13: 51310 | F13: litres
A14: Steam/hot water exported | D14: =+'Operational Data'!G30 -> 0 | F14: GWh | G14: =+'Operational Data'!H30 -> -
A18: Operator’s comments :
A19: Diesel volume on this page is used in mobile plant and hired generator(s) during planned outage.
A29: Signed: | C29: REDACTED | G29: Date: | H29: 2024-01-24

Sheet Permit Compliance
A1: =+'Cover Page'!$B$29 -> Annual Performance Report 2023 | E1: =+'Cover Page'!$B$33 -> Millerhill RERC
A3: Summary of Permit Compliance
A5: Compliance with permit limits for continuously monitored pollutants
A7: The plant met its emission limits as shown in the table below:
A8: Substance | C8: Percentage time compliant during operation | L8: Notes:
C9: *97%ile or 100%ile Half-hourly limits | F9: Daily limit | L9: Report to 2 decimal places, i.e. xx.xx% Please provide a brief summary of each notification or non-compliance in the table (rather than just referring to notifications that were sent to the Regulator). *For Half-hourly ELVS - Explain any periods when the 100%ile has not been met.
A10: Particulates | C10: 1 | F10: 1
A11: Oxides of nitrogen | C11: 1 | F11: 1
A12: Sulphur dioxide | C12: 1 | F12: 1
A13: Carbon monoxide | C13: 100% 95% of 10-min averages | F13: 1
A14: Total organic carbon | C14: 1 | F14: 1
A15: Hydrogen chloride | C15: 1 | F15: 1
A16: Hydrogen fluoride | C16: 1 | F16: 1
A17: Ammonia | C17: 1 | F17: 1
A19: Summary of any notifications or non-compliances under the permit
A20: Date | B20: Summary of notification or non-compliance [including Line/Reference] | E20: Reason | H20: Measures taken to prevent reoccurrence
A27: Summary of any complaints received and actions to taken to resolve them.
A28: Date | B28: Summary of complaint [including Line/Reference] | E28: Reason * | H28: Measures taken to prevent reoccurrence
A29: 2023-10-26 | B29: Resident complains of "Frequent (but not constant) foul smells, generally when the wind is coming from the direction of Millerhill RERC, similar to sewage but worse." | E29: Evidence suggests the AD plant adjacent is the source and complaint not substantiated by FCC or SEPA.
E34: * including whether substantiated by the operator or SEPA

Sheet Improvements
A1: =+'Cover Page'!$B$29 -> Annual Performance Report 2023 | E1: =+'Cover Page'!$B$33 -> Millerhill RERC
A3: Summary of Plant Improvements
A5: Summary of any efficiency improvements that have been completed within the year.
A6: None
A16: Summary of any permit improvement conditions that have been completed within the year and the resulting environmental benefits.
A17: N/A
A27: Summary of any changes to the plant or operating techniques which required a variation to the permit and a summary of the resulting environmental impact.
A28: N/A
A38: Summary of any other improvements made to the plant or planned to be made and a summary of the resulting environmental benefits.
A39: SEPA initiated Permit variation expected in 2024 for BREF compliance, this will reduce some Emission Limit Values.

Sheet Public Liasion
A1: =+'Cover Page'!$B$29 -> Annual Performance Report 2023 | E1: =+'Cover Page'!$B$33 -> Millerhill RERC
A3: Details of Public & Stakeholder Liasion
A5: Summary of events held during the reporting year.
A6: Date | C6: Description
B7: 2023-02-10 | C7: East Lothian Counsellor Visit
B8: 2023-03-10 | C8: JDS Gardening
B9: 2023-03-09 | C9: Mayfield Salisbury Church
B10: 2023-03-14 | C10: HZI
B11: 2023-03-15 | C11: University of Edinburgh
B12: 2023-03-21 | C12: Musselburgh Area Partnership
B13: 2023-03-27 | C13: [REDACTED] – Woodcraft Folk
B14: 2023-04-18 | C14: Holyrood Business Breakfast S2 Earth Day – held at Holyrood High School outreach
B15: 2023-05-18 | C15: Vattenfall
B16: 2023-05-30 | C16: Queen Margaret University
B17: 2023-06-13 | C17: SESA
B18: 2023-08-11 | C18: 4 members of public site visit
B19: 2023-10-25 | C19: Parsons Green Primary School
B20: 2023-11-02 | C20: Parsons Green Primary School
B21: 2023-11-10 | C21: Edinburgh College Engineering Students
B22: 2023-11-28 | C22: Torness Power station – Retired Staff
B23: 2023-12-06 | C23: Peebles Rotary Club
B24: 2023-12-08 | C24: James Gillespie Primary School
A27: List of events planned for next year
A28: Date | C28: Description
B29: 2024-01-16 | C29: Millerhill Homes
B30: 2024-01-29 | C30: Woodburn Primary School
B31: 2024-02-01 | C31: George Heriot School
B32: 2024-02-06 | C32: Eskvalley Rotary Club
B33: 2024-03-06 | C33: Volunteers - Group of Engineers
B34: 2024-03-15 | C34: French Students on a visit to Scotland
A40: If you wish to be involved in the public liasion programme, please contact _________________

Sheet Residue Quality
A1: =+'Cover Page'!$B$29 -> Annual Performance Report 2023 | E1: =+'Cover Page'!$B$33 -> Millerhill RERC
A3: Residue Quality Monitoring Requirements
A5: Summary of monitoring undertaken and compliance
A6: FCC Millerhill follows the ESA's Ash Sampling protocol. Samples are sent for analysis twice a month and to date all samples have been non-hazardous
A13: Commentary on any specific events
A14: Date & Event | C14: Description
A27: Residue Quality Monitoring Results
A28: Parameter (unit) | C28: Limit | D28: Normal Operation
D29: Bottom ash | F29: APC Residues | H29: Other
A30: Loss on Ignition (average %) | C30: <5% | D30: 2.89
A31: Total Organic Carbon (average %) | C31: <3% | D31: 1.51
A32: No. of Assessments Undertaken | C32: --- | D32: 24 | F32: 4
A33: No. of Hazardous Results | C33: --- | D33: 0
A35: Comments :

Sheet Water
A1: =+'Cover Page'!$B$29 -> Annual Performance Report 2023 | E1: =+'Cover Page'!$B$33 -> Millerhill RERC
A3: Emissions to Water
A5: Summary of monitoring undertaken and compliance
A13: Commentary on any specific events
A14: Date & Event | C14: Description
A22: Emissions to Water / Sewer
A23: Parameter | D23: Monitoring Frequency | G23: Limit | H23: Target | I23: Max. | J23: Average

Sheet Air (periodic)
A1: =+'Cover Page'!$B$29 -> Annual Performance Report 2023 | E1: =+'Cover Page'!$B$33 -> Millerhill RERC
A3: Emissions to Air (periodically monitored)
A5: Summary of monitoring undertaken, standards used and compliance | M5: Notes:
A6: The reported values have been calculated by taking the Mean of both sets of results of periodic emissions monitoring undertaken between 6-9 February 2023 and 31 July- 4 August 2023. | M6: Template may require adjustment for any bespoke monitoring requirements of permit.
A9: Results of emissions to air that are periodically monitored
A10: Substance | C10: Ref. Period | D10: Emission Limit Value | F10: Average | M10: User to add additional tables as necessary, depending on whether quarterly or bi-annual reporting is required for the compliance year
F11: A1 | G11: A2 | H11: A3 | I11: A4 | J11: A5
A12: Particulates | C12: Ave value consecutive 3 x 30mins | D12: 30 mg/m3 | F12: 0.685
A13: Oxides of nitrogen | C13: Ave value consecutive 3 x 30mins | D13: 200 mg/m3 | F13: 192.3
A14: Sulphur dioxide | C14: Ave value consecutive 3 x 30mins | D14: 200 mg/m3 | F14: 13.44
A15: Carbon monoxide | C15: Ave value consecutive 3 x 30mins | D15: 100 mg/m3 | F15: 2.23
A16: Total organic carbon | C16: Ave value consecutive 3 x 30mins | D16: 20 mg/m3 | F16: 1.575
A17: Hydrogen chloride | C17: Ave value consecutive 3 x 30mins | D17: 60 mg/m3 | F17: 4.265
A18: Hydrogen fluoride | C18: Ave value consecutive 3 x 30mins | D18: 4 mg/m3 | F18: 0.025
A19: PM10 | C19: Ave value consecutive 3 x 30mins | D19: mg/m3 | F19: n/a
A20: PM2.5 | C20: Ave value consecutive 3 x 30mins | D20: mg/m3 | F20: n/a
A21: Ammonia | C21: Ave value consecutive 3 x 30mins | D21: 10 mg/m3 | F21: 0.66
A22: Nitrous Oxide | C22: Ave value consecutive 3 x 30mins | D22: mg/m3 | F22: 0.08
A23: Cd and Th and their compounds | C23: Ave value consecutive 3 x 30mins | D23: 0.05 mg/m3 | F23: 0.00525
A24: Hg and its compounds | C24: Ave value consecutive 3 x 30mins | D24: 0.05 mg/m3 | F24: 0.00275
A25: Sb, As, Pb, Cr, Co, Cu, Mn, Ni, V and their compounds | C25: Ave value consecutive 3 x 30mins | D25: 0.5 mg/m3 | F25: 0.0439
A26: Dioxins & Furans (I-TEQ) | C26: Ave value over single measurement of 6-8 hours | D26: 0.1 ng/m3 | F26: 0.0025155
A27: PCBs (WHO-TEQ Humans / Mammals) | C27: Ave value over single measurement of 6-8 hours | D27: None set ng/m3 | F27: 0.000153
A28: PCBs (WHO-TEQ Fish) | C28: Ave value over single measurement of 6-8 hours | D28: None set ng/m3 | F28: 1e-05
A29: PCBs (WHO-TEQ Birds) | C29: Ave value over single measurement of 6-8 hours | D29: None set ng/m3 | F29: 0.0007335
A30: Dioxins & Furans (WHO-TEQ Humans / Mammals) | C30: Ave value over single measurement of 6-8 hours | D30: None set ng/m3 | F30: 0.002514
A31: Dioxins & Furans (WHO-TEQ Fish) | C31: Ave value over single measurement of 6-8 hours | D31: None set ng/m3 | F31: 0.002437
A32: Dioxins & Furans (WHO-TEQ Birds) | C32: Ave value over single measurement of 6-8 hours | D32: None set ng/m3 | F32: 0.003319
A33: Anthanthrene | C33: Ave value consecutive 3 x 30mins | D33: None set µg/m3 | F33: 0.00465
A34: Benzo(a)anthracene | C34: Ave value consecutive 3 x 30mins | D34: None set µg/m3 | F34: 0.00465
A35: Benzo(a)pyrene | C35: Ave value consecutive 3 x 30mins | D35: None set µg/m3 | F35: 0.00465
A36: Benzo(b)fluoranthene | C36: Ave value consecutive 3 x 30mins | D36: None set µg/m3 | F36: 0.00465
A37: Benzo(b)naptho(2,1-d) thiophene | C37: Ave value consecutive 3 x 30mins | D37: None set µg/m3 | F37: 0.00465
A38: Benzo(c)phenanthrene | C38: Ave value consecutive 3 x 30mins | D38: None set µg/m3 | F38: 0.00465
A39: Benzo(ghi)perylene | C39: Ave value consecutive 3 x 30mins | D39: None set µg/m3 | F39: 0.00465
A40: Benzo(k)fluoranthene | C40: Ave value consecutive 3 x 30mins | D40: None set µg/m3 | F40: 0.00465
A41: Cholanthrene | C41: Ave value consecutive 3 x 30mins | D41: None set µg/m3 | F41: 0.00465
A42: Chrysene | C42: Ave value consecutive 3 x 30mins | D42: None set µg/m3 | F42: 0.00755
A43: Cyclopenta(cd)pyrene | C43: Ave value consecutive 3 x 30mins | D43: None set µg/m3 | F43: 0.00465
A44: Dibenzo(ai)pyrene | C44: Ave value consecutive 3 x 30mins | D44: None set µg/m3 | F44: 0.00465
A45: Dibenzo(ah)anthracene | C45: Ave value consecutive 3 x 30mins | D45: None set µg/m3 | F45: 0.00465
A46: Fluoranthene | C46: Ave value consecutive 3 x 30mins | D46: None set µg/m3 | F46: 0.065
A47: Indeno(123-cd) pyrene | C47: Ave value consecutive 3 x 30mins | D47: None set µg/m3 | F47: 0.00465
A48: Naphthalene | C48: Ave value consecutive 3 x 30mins | D48: None set µg/m3 | F48: 0.44
C49: Ave value consecutive 3 x 30mins
A50: Date of QAL2 /AST: | C50: 6-8 February 2023
A51: Comments :

Sheet Air (CEMS)
A1: =+'Cover Page'!$B$29 -> Annual Performance Report 2023 | I1: =+'Cover Page'!$B$33 -> Millerhill RERC
A3: Emissions to Air (continously monitored)
P4: Notes:
A5: Summary of monitoring undertaken, standards used and compliance | P5: Template may require adjustment for any bespoke monitoring requirements of permit
P6: Report to 2 decimal places, i.e. xx.xx%
A11: Results of emissions to air that are continuously monitored (maximum and average values for each line)
A12: Substance | B12: Reference Period | C12: Emission Limit Value | D12: A1 | F12: A2 | H12: A3 | J12: A4 | L12: A5
D13: Max. | E13: Avg. | F13: Max. | G13: Avg. | H13: Max. | I13: Avg. | J13: Max. | K13: Avg. | L13: Max. | M13: Avg.
A14: Oxides of nitrogen | B14: Daily mean | C14: 200 mg/m3 | D14: 173 | E14: =NOx!N19 -> 168.8836162
B15: ½ hourly mean | C15: 400 mg/m3 | D15: 252 | E15: 168.92
A16: Particulates | B16: Daily mean | C16: 10 mg/m3 | D16: 1 | E16: =Particulates!N19 -> 0.8581629496
B17: ½ hourly mean | C17: 30 mg/m3 | D17: 1 | E17: 1
A18: Total Organic Carbon | B18: Daily mean | C18: 10 mg/m3 | D18: 0 | E18: =TOC!N19 -> 0.1080751244
B19: ½ hourly mean | C19: 20 mg/m3 | D19: 15 | E19: 0
A20: Hydrogen chloride | B20: Daily mean | C20: 10 mg/m3 | D20: 5 | E20: =HCl!N19 -> 2.290974715
B21: ½ hourly mean | C21: 60 mg/m3 | D21: 14 | E21: 2.17
A22: Sulphur dioxide | B22: Daily mean | C22: 50 mg/m3 | D22: 41 | E22: ='SO2'!N19 -> 19.05883505
B23: ½ hourly mean | C23: 200 mg/m3 | D23: 115 | E23: 19.08
A24: Nitrous Oxide | B24: Daily mean | C24: No limit set | D24: 0 | E24: =N2O!N19 -> -0.4072464502
B25: ½ hourly mean | C25: No limit set | D25: 6 | E25: 0
A26: Carbon monoxide | B26: Daily mean | C26: 50 mg/m3 | D26: 14 | E26: ='CO 0.5hourly'!N19 -> 2.268123491
B27: ½ hourly mean * | C27: 100 mg/m3 * | D27: 438 | E27: 2.25
B28: 95%ile 10-min avg * | C28: 150 mg/m3 * | D28: 1246.99 | E28: ='CO 95% 10 min'!M19 -> 3.0075
A29: Ammonia | B29: Daily mean | C29: No limit set | D29: 0 | E29: ='NH3'!N19 -> 0.1747161062
A30: * = delete or amend as appropriate
A31: Comments :
A32: Note that FCC Millerhill's permit allows for a half-hourly exceedance of CO as long as the 95% 10 minute limit is complied with. The CO spikes reported do not constitute a permit breach as the plant was within the 95% 10-minute CO limit at all times. Such instances are reported to SEPA as a courtesy.

Sheet HCl
A1: =+'Cover Page'!$B$29 -> Annual Performance Report 2023 | E1: =+'Cover Page'!$B$33 -> Millerhill RERC
A3: Monitoring of Hydrogen Chloride emissions | D3: Whole Installation | G3: See Notes in Cell Q3 | J3: =+A3 -> Monitoring of Hydrogen Chloride emissions | N3: Per Combustion Line | Q3: Notes:
Q4: User to add logic to complete Whole installation, Table A5:G18. From the data in Per Combustion Line, Table J6:O79, subject to No. of lines installed
A5: mg/Nm3 | B5: 1/2 Hourly Reference Periods | E5: Daily Reference Periods
A6: =+'Cover Page'!C39 -> 2023 | B6: 1/2 hourly HCl ELV | C6: Monthly 1/2 hourly mean | D6: Highest 1/2 hourly maximum | E6: Daily HCl ELV | F6: Monthly daily mean | G6: Highest daily maximum | J6: =+A6 -> 2023 | K6: mg/Nm3 | L6: Monthly 1/2 hourly mean | M6: Monthly 1/2 hourly maximum | N6: Monthly daily mean | O6: Monthly daily maximum
A7: Jan | B7: 60 | C7: 3 | D7: 10 | E7: 10 | F7: 2.844193548 | G7: 5 | J7: A1 | K7: Jan | L7: 3 | M7: 10 | N7: 2.844193548 | O7: 5
A8: Feb | B8: 60 | C8: 3 | D8: 9 | E8: 10 | F8: 3.042857143 | G8: 5 | K8: Feb | L8: 3 | M8: 9 | N8: 3.042857143 | O8: 5
A9: Mar | B9: 60 | C9: 2 | D9: 6 | E9: 10 | F9: 2.445806452 | G9: 3 | K9: Mar | L9: 2 | M9: 6 | N9: 2.445806452 | O9: 3 | Q9: Whole Installation table A5:G18:
A10: Apr | B10: 60 | C10: 3 | D10: 8 | E10: 10 | F10: 2.780909091 | G10: 5 | K10: Apr | L10: 3 | M10: 8 | N10: 2.780909091 | O10: 5 | Q10: Mean: for 1/2 hourly and daily periods calculate mean of values across all operational combustion lines for the month
A11: May | B11: 60 | C11: 1 | D11: 2 | E11: 10 | F11: 1.356521739 | G11: 1 | K11: May | L11: 1 | M11: 2 | N11: 1.356521739 | O11: 1
A12: Jun | B12: 60 | C12: 2 | D12: 10 | E12: 10 | F12: 1.929 | G12: 3 | K12: Jun | L12: 2 | M12: 10 | N12: 1.929 | O12: 3
A13: Jul | B13: 60 | C13: 2 | D13: 8 | E13: 10 | F13: 2.220967742 | G13: 4 | K13: Jul | L13: 2 | M13: 8 | N13: 2.220967742 | O13: 4 | Q13: Maximum: for 1/2 hourly and daily periods use the highest value across all operational combustion lines for the month
A14: Aug | B14: 60 | C14: 2 | D14: 7 | E14: 10 | F14: 2.432258065 | G14: 3 | K14: Aug | L14: 2 | M14: 7 | N14: 2.432258065 | O14: 3
A15: Sep | B15: 60 | C15: 2 | D15: 7 | E15: 10 | F15: 2.448333333 | G15: 3 | K15: Sep | L15: 2 | M15: 7 | N15: 2.448333333 | O15: 3
A16: Oct | B16: 60 | C16: 2 | D16: 14 | E16: 10 | F16: 1.924516129 | G16: 4 | K16: Oct | L16: 2 | M16: 14 | N16: 1.924516129 | O16: 4
A17: Nov | B17: 60 | C17: 2 | D17: 8 | E17: 10 | F17: 1.837333333 | G17: 5 | K17: Nov | L17: 2 | M17: 8 | N17: 1.837333333 | O17: 5
A18: Dec | B18: 60 | C18: 2 | D18: 10 | E18: 10 | F18: 2.229 | G18: 4 | K18: Dec | L18: 2 | M18: 10 | N18: 2.229 | O18: 4
K19: Annual | L19: =AVERAGE(L7:L18) -> 2.166666667 | M19: =MAX(M7:M18) -> 14 | N19: =AVERAGE(N7:N18) -> 2.290974715 | O19: =MAX(O7:O18) -> 5
J21: =+A6 -> 2023 | K21: mg/Nm3 | L21: Monthly 1/2 hourly mean | M21: Monthly 1/2 hourly maximum | N21: Monthly daily mean | O21: Monthly daily maximum
J22: A2 | K22: Jan
K23: Feb
K24: Mar
K25: Apr
K26: May
K27: Jun
K28: Jul
K29: Aug
K30: Sep
K31: Oct
K32: Nov
K33: Dec
K34: Annual | L34: =AVERAGE(L22:L33) ->  | M34: =MAX(M22:M33) -> 0 | N34: =AVERAGE(N22:N33) ->  | O34: =MAX(O22:O33) -> 0
J36: =+A6 -> 2023 | K36: mg/Nm3 | L36: Monthly 1/2 hourly mean | M36: Monthly 1/2 hourly maximum | N36: Monthly daily mean | O36: Monthly daily maximum
J37: A3 | K37: Jan
K38: Feb
K39: Mar
K40: Apr
K41: May
K42: Jun
K43: Jul
K44: Aug
K45: Sep
K46: Oct
K47: Nov
A48: Comments : | K48: Dec
K49: Annual | L49: =AVERAGE(L37:L48) ->  | M49: =MAX(M37:M48) -> 0 | N49: =AVERAGE(N37:N48) ->  | O49: =MAX(O37:O48) -> 0
J51: =+A6 -> 2023 | K51: mg/Nm3 | L51: Monthly 1/2 hourly mean | M51: Monthly 1/2 hourly maximum | N51: Monthly daily mean | O51: Monthly daily maximum
J52: A4 | K52: Jan
K53: Feb
K54: Mar
K55: Apr
K56: May
K57: Jun
K58: Jul
K59: Aug
K60: Sep
K61: Oct
K62: Nov
K63: Dec
K64: Annual | L64: =AVERAGE(L52:L63) ->  | M64: =MAX(M52:M63) -> 0 | N64: =AVERAGE(N52:N63) ->  | O64: =MAX(O52:O63) -> 0
J66: =+A6 -> 2023 | K66: mg/Nm3 | L66: Monthly 1/2 hourly mean | M66: Monthly 1/2 hourly maximum | N66: Monthly daily mean | O66: Monthly daily maximum
J67: A5 | K67: Jan
K68: Feb
K69: Mar
K70: Apr
K71: May
K72: Jun
K73: Jul
K74: Aug
K75: Sep
K76: Oct
K77: Nov
K78: Dec
K79: Annual | L79: =AVERAGE(L67:L78) ->  | M79: =MAX(M67:M78) -> 0 | N79: =AVERAGE(N67:N78) ->  | O79: =MAX(O67:O78) -> 0

Sheet SO2
A1: =+'Cover Page'!$B$29 -> Annual Performance Report 2023 | E1: =+'Cover Page'!$B$33 -> Millerhill RERC
A3: Monitoring of Sulphur dioxide emissions | D3: Whole Installation | G3: See Notes in Cell Q3 | J3: =+A3 -> Monitoring of Sulphur dioxide emissions | N3: Per Combustion Line | Q3: Notes:
Q4: User to add logic to complete Whole installation, Table A5:G18. From the data in Per Combustion Line, Table J6:O79, subject to No. of lines installed
A5: mg/Nm3 | B5: 1/2 Hourly Reference Periods | E5: Daily Reference Periods
A6: =+'Cover Page'!C39 -> 2023 | B6: 1/2 hourly SO2 ELV | C6: Monthly 1/2 hourly mean | D6: Highest 1/2 hourly maximum | E6: Daily SO2 ELV | F6: Monthly daily mean | G6: Highest daily maximum | J6: =+A6 -> 2023 | K6: mg/Nm3 | L6: Monthly 1/2 hourly mean | M6: Monthly 1/2 hourly maximum | N6: Monthly daily mean | O6: Monthly daily maximum
A7: Jan | B7: 200 | C7: 8 | D7: 51 | E7: 50 | F7: 7.722258065 | G7: 20 | J7: A1 | K7: Jan | L7: 8 | M7: 51 | N7: 7.722258065 | O7: 20
A8: Feb | B8: 200 | C8: 11 | D8: 55 | E8: 50 | F8: 10.57035714 | G8: 17 | K8: Feb | L8: 11 | M8: 55 | N8: 10.57035714 | O8: 17
A9: Mar | B9: 200 | C9: 16 | D9: 68 | E9: 50 | F9: 16.34709677 | G9: 29 | K9: Mar | L9: 16 | M9: 68 | N9: 16.34709677 | O9: 29 | Q9: Whole Installation table A5:G18:
A10: Apr | B10: 200 | C10: 14 | D10: 75 | E10: 50 | F10: 14.38863636 | G10: 33 | K10: Apr | L10: 14 | M10: 75 | N10: 14.38863636 | O10: 33 | Q10: Mean: for 1/2 hourly and daily periods calculate mean of values across all operational combustion lines for the month
A11: May | B11: 200 | C11: 33 | D11: 102 | E11: 50 | F11: 32.36652174 | G11: 42 | K11: May | L11: 33 | M11: 102 | N11: 32.36652174 | O11: 42
A12: Jun | B12: 200 | C12: 27 | D12: 54 | E12: 50 | F12: 26.95066667 | G12: 39 | K12: Jun | L12: 27 | M12: 54 | N12: 26.95066667 | O12: 39
A13: Jul | B13: 200 | C13: 20 | D13: 84 | E13: 50 | F13: 20.36032258 | G13: 32 | K13: Jul | L13: 20 | M13: 84 | N13: 20.36032258 | O13: 32 | Q13: Maximum: for 1/2 hourly and daily periods use the highest value across all operational combustion lines for the month
A14: Aug | B14: 200 | C14: 19 | D14: 71 | E14: 50 | F14: 18.64903226 | G14: 37 | K14: Aug | L14: 19 | M14: 71 | N14: 18.64903226 | O14: 37
A15: Sep | B15: 200 | C15: 16 | D15: 56 | E15: 50 | F15: 16.272 | G15: 33 | K15: Sep | L15: 16 | M15: 56 | N15: 16.272 | O15: 33
A16: Oct | B16: 200 | C16: 23 | D16: 59 | E16: 50 | F16: 23.22612903 | G16: 36 | K16: Oct | L16: 23 | M16: 59 | N16: 23.22612903 | O16: 36
A17: Nov | B17: 200 | C17: 24 | D17: 64 | E17: 50 | F17: 24.25733333 | G17: 37 | K17: Nov | L17: 24 | M17: 64 | N17: 24.25733333 | O17: 37
A18: Dec | B18: 200 | C18: 18 | D18: 115 | E18: 50 | F18: 17.59566667 | G18: 26 | K18: Dec | L18: 18 | M18: 115 | N18: 17.59566667 | O18: 26
K19: Annual | L19: =AVERAGE(L7:L18) -> 19.08333333 | M19: =MAX(M7:M18) -> 115 | N19: =AVERAGE(N7:N18) -> 19.05883505 | O19: =MAX(O7:O18) -> 42
J21: =+A6 -> 2023 | K21: mg/Nm3 | L21: Monthly 1/2 hourly mean | M21: Monthly 1/2 hourly maximum | N21: Monthly daily mean | O21: Monthly daily maximum
J22: A2 | K22: Jan
K23: Feb
K24: Mar
K25: Apr
K26: May
K27: Jun
K28: Jul
K29: Aug
K30: Sep
K31: Oct
K32: Nov
K33: Dec
K34: Annual | L34: =AVERAGE(L22:L33) ->  | M34: =MAX(M22:M33) -> 0 | N34: =AVERAGE(N22:N33) ->  | O34: =MAX(O22:O33) -> 0
J36: =+A6 -> 2023 | K36: mg/Nm3 | L36: Monthly 1/2 hourly mean | M36: Monthly 1/2 hourly maximum | N36: Monthly daily mean | O36: Monthly daily maximum
J37: A3 | K37: Jan
K38: Feb
K39: Mar
K40: Apr
K41: May
K42: Jun
K43: Jul
K44: Aug
K45: Sep
K46: Oct
K47: Nov
A48: Comments : | K48: Dec
K49: Annual | L49: =AVERAGE(L37:L48) ->  | M49: =MAX(M37:M48) -> 0 | N49: =AVERAGE(N37:N48) ->  | O49: =MAX(O37:O48) -> 0
J51: =+A6 -> 2023 | K51: mg/Nm3 | L51: Monthly 1/2 hourly mean | M51: Monthly 1/2 hourly maximum | N51: Monthly daily mean | O51: Monthly daily maximum
J52: A4 | K52: Jan
K53: Feb
K54: Mar
K55: Apr
K56: May
K57: Jun
K58: Jul
K59: Aug
K60: Sep
K61: Oct
K62: Nov
K63: Dec
K64: Annual | L64: =AVERAGE(L52:L63) ->  | M64: =MAX(M52:M63) -> 0 | N64: =AVERAGE(N52:N63) ->  | O64: =MAX(O52:O63) -> 0
J66: =+A6 -> 2023 | K66: mg/Nm3 | L66: Monthly 1/2 hourly mean | M66: Monthly 1/2 hourly maximum | N66: Monthly daily mean | O66: Monthly daily maximum
J67: A5 | K67: Jan
K68: Feb
K69: Mar
K70: Apr
K71: May
K72: Jun
K73: Jul
K74: Aug
K75: Sep
K76: Oct
K77: Nov
K78: Dec
K79: Annual | L79: =AVERAGE(L67:L78) ->  | M79: =MAX(M67:M78) -> 0 | N79: =AVERAGE(N67:N78) ->  | O79: =MAX(O67:O78) -> 0

Sheet NOx
A1: =+'Cover Page'!$B$29 -> Annual Performance Report 2023 | E1: =+'Cover Page'!$B$33 -> Millerhill RERC
A3: Monitoring of Oxides of Nitrogen emissions | D3: Whole Installation | G3: See Notes in Cell Q3 | J3: =+A3 -> Monitoring of Oxides of Nitrogen emissions | N3: Per Combustion Line | Q3: Notes:
Q4: User to add logic to complete Whole installation, Table A5:G18. From the data in Per Combustion Line, Table J6:O79, subject to No. of lines installed
A5: mg/Nm3 | B5: 1/2 Hourly Reference Periods | E5: Daily Reference Periods
A6: =+'Cover Page'!C39 -> 2023 | B6: 1/2 hourly NOx ELV | C6: Monthly 1/2 hourly mean | D6: Highest 1/2 hourly maximum | E6: Daily NOx ELV | F6: Monthly daily mean | G6: Highest daily maximum | J6: =+A6 -> 2023 | K6: mg/Nm3 | L6: Monthly 1/2 hourly mean | M6: Monthly 1/2 hourly maximum | N6: Monthly daily mean | O6: Monthly daily maximum
A7: Jan | B7: 400 | C7: 165 | D7: 231 | E7: 200 | F7: 165.2216129 | G7: 172 | J7: A1 | K7: Jan | L7: 165 | M7: 231 | N7: 165.2216129 | O7: 172
A8: Feb | B8: 400 | C8: 168 | D8: 190 | E8: 200 | F8: 167.9128571 | G8: 170 | K8: Feb | L8: 168 | M8: 190 | N8: 167.9128571 | O8: 170
A9: Mar | B9: 400 | C9: 170 | D9: 188 | E9: 200 | F9: 170.0241935 | G9: 170 | K9: Mar | L9: 170 | M9: 188 | N9: 170.0241935 | O9: 170 | Q9: Whole Installation table A5:G18:
A10: Apr | B10: 400 | C10: 170 | D10: 252 | E10: 200 | F10: 169.5318182 | G10: 173 | K10: Apr | L10: 170 | M10: 252 | N10: 169.5318182 | O10: 173 | Q10: Mean: for 1/2 hourly and daily periods calculate mean of values across all operational combustion lines for the month
A11: May | B11: 400 | C11: 170 | D11: 201 | E11: 200 | F11: 170.0178261 | G11: 170 | K11: May | L11: 170 | M11: 201 | N11: 170.0178261 | O11: 170
A12: Jun | B12: 400 | C12: 170 | D12: 205 | E12: 200 | F12: 170.021 | G12: 171 | K12: Jun | L12: 170 | M12: 205 | N12: 170.021 | O12: 171
A13: Jul | B13: 400 | C13: 169 | D13: 195 | E13: 200 | F13: 168.7293548 | G13: 171 | K13: Jul | L13: 169 | M13: 195 | N13: 168.7293548 | O13: 171 | Q13: Maximum: for 1/2 hourly and daily periods use the highest value across all operational combustion lines for the month
A14: Aug | B14: 400 | C14: 165 | D14: 192 | E14: 200 | F14: 165.333871 | G14: 171 | K14: Aug | L14: 165 | M14: 192 | N14: 165.333871 | O14: 171
A15: Sep | B15: 400 | C15: 170 | D15: 219 | E15: 200 | F15: 170.0286667 | G15: 172 | K15: Sep | L15: 170 | M15: 219 | N15: 170.0286667 | O15: 172
A16: Oct | B16: 400 | C16: 170 | D16: 202 | E16: 200 | F16: 169.8341935 | G16: 171 | K16: Oct | L16: 170 | M16: 202 | N16: 169.8341935 | O16: 171
A17: Nov | B17: 400 | C17: 170 | D17: 211 | E17: 200 | F17: 170.0506667 | G17: 171 | K17: Nov | L17: 170 | M17: 211 | N17: 170.0506667 | O17: 171
A18: Dec | B18: 400 | C18: 170 | D18: 198 | E18: 200 | F18: 169.8973333 | G18: 171 | K18: Dec | L18: 170 | M18: 198 | N18: 169.8973333 | O18: 171
K19: Annual | L19: =AVERAGE(L7:L18) -> 168.9166667 | M19: =MAX(M7:M18) -> 252 | N19: =AVERAGE(N7:N18) -> 168.8836162 | O19: =MAX(O7:O18) -> 173
J21: =+A6 -> 2023 | K21: mg/Nm3 | L21: Monthly 1/2 hourly mean | M21: Monthly 1/2 hourly maximum | N21: Monthly daily mean | O21: Monthly daily maximum
J22: A2 | K22: Jan
K23: Feb
K24: Mar
K25: Apr
K26: May
K27: Jun
K28: Jul
K29: Aug
K30: Sep
K31: Oct
K32: Nov
K33: Dec
K34: Annual | L34: =AVERAGE(L22:L33) ->  | M34: =MAX(M22:M33) -> 0 | N34: =AVERAGE(N22:N33) ->  | O34: =MAX(O22:O33) -> 0
J36: =+A6 -> 2023 | K36: mg/Nm3 | L36: Monthly 1/2 hourly mean | M36: Monthly 1/2 hourly maximum | N36: Monthly daily mean | O36: Monthly daily maximum
J37: A3 | K37: Jan
K38: Feb
K39: Mar
K40: Apr
K41: May
K42: Jun
K43: Jul
K44: Aug
K45: Sep
K46: Oct
K47: Nov
A48: Comments : | K48: Dec
K49: Annual | L49: =AVERAGE(L37:L48) ->  | M49: =MAX(M37:M48) -> 0 | N49: =AVERAGE(N37:N48) ->  | O49: =MAX(O37:O48) -> 0
J51: =+A6 -> 2023 | K51: mg/Nm3 | L51: Monthly 1/2 hourly mean | M51: Monthly 1/2 hourly maximum | N51: Monthly daily mean | O51: Monthly daily maximum
J52: A4 | K52: Jan
K53: Feb
K54: Mar
K55: Apr
K56: May
K57: Jun
K58: Jul
K59: Aug
K60: Sep
K61: Oct
K62: Nov
K63: Dec
K64: Annual | L64: =AVERAGE(L52:L63) ->  | M64: =MAX(M52:M63) -> 0 | N64: =AVERAGE(N52:N63) ->  | O64: =MAX(O52:O63) -> 0
J66: =+A6 -> 2023 | K66: mg/Nm3 | L66: Monthly 1/2 hourly mean | M66: Monthly 1/2 hourly maximum | N66: Monthly daily mean | O66: Monthly daily maximum
J67: A5 | K67: Jan
K68: Feb
K69: Mar
K70: Apr
K71: May
K72: Jun
K73: Jul
K74: Aug
K75: Sep
K76: Oct
K77: Nov
K78: Dec
K79: Annual | L79: =AVERAGE(L67:L78) ->  | M79: =MAX(M67:M78) -> 0 | N79: =AVERAGE(N67:N78) ->  | O79: =MAX(O67:O78) -> 0

Sheet N2O
A1: =+'Cover Page'!$B$29 -> Annual Performance Report 2023 | E1: Millerhill RERC
A3: Monitoring of Nitrous Oxide emissions | D3: Whole Installation | G3: See Notes in Cell Q3 | J3: =+A3 -> Monitoring of Nitrous Oxide emissions | N3: Per Combustion Line | Q3: Notes:
Q4: User to add logic to complete Whole installation, Table A5:G18. From the data in Per Combustion Line, Table J6:O79, subject to No. of lines installed
A5: mg/Nm3 | B5: 1/2 Hourly Reference Periods | E5: Daily Reference Periods
A6: =+'Cover Page'!C39 -> 2023 | B6: 1/2 hourly N2O ELV | C6: Monthly 1/2 hourly mean | D6: Highest 1/2 hourly maximum | E6: Daily N2O ELV | F6: Monthly daily mean | G6: Highest daily maximum | J6: =+A6 -> 2023 | K6: mg/Nm3 | L6: Monthly 1/2 hourly mean | M6: Monthly 1/2 hourly maximum | N6: Monthly daily mean | O6: Monthly daily maximum
A7: Jan | C7: 0 | D7: 2 | F7: 0.07419354839 | G7: 0 | J7: A1 | K7: Jan | L7: 0 | M7: 2 | N7: 0.07419354839 | O7: 0
A8: Feb | C8: 0 | D8: 1 | F8: 0.08214285714 | G8: 0 | K8: Feb | L8: 0 | M8: 1 | N8: 0.08214285714 | O8: 0
A9: Mar | C9: 0 | D9: 1 | F9: 0.05483870968 | G9: 0 | K9: Mar | L9: 0 | M9: 1 | N9: 0.05483870968 | O9: 0 | Q9: Whole Installation table A5:G18:
A10: Apr | C10: 0 | D10: 1 | F10: 0.09090909091 | G10: 0 | K10: Apr | L10: 0 | M10: 1 | N10: 0.09090909091 | O10: 0 | Q10: Mean: for 1/2 hourly and daily periods calculate mean of values across all operational combustion lines for the month
A11: May | C11: 0 | D11: 1 | F11: 0.1391304348 | G11: 0 | K11: May | L11: 0 | M11: 1 | N11: 0.1391304348 | O11: 0
A12: Jun | C12: 0 | D12: 1 | F12: -0.1433333333 | G12: 0 | K12: Jun | L12: 0 | M12: 1 | N12: -0.1433333333 | O12: 0
A13: Jul | C13: 0 | D13: 0 | F13: -0.3516129032 | G13: 0 | K13: Jul | L13: 0 | M13: 0 | N13: -0.3516129032 | O13: 0 | Q13: Maximum: for 1/2 hourly and daily periods use the highest value across all operational combustion lines for the month
A14: Aug | C14: 0 | D14: 0 | F14: -1.009677419 | G14: 0 | K14: Aug | L14: 0 | M14: 0 | N14: -1.009677419 | O14: 0
A15: Sep | C15: 0 | D15: 0 | F15: -1.163333333 | G15: 0 | K15: Sep | L15: 0 | M15: 0 | N15: -1.163333333 | O15: 0
A16: Oct | C16: 0 | D16: 4 | F16: -0.8935483871 | G16: 0 | K16: Oct | L16: 0 | M16: 4 | N16: -0.8935483871 | O16: 0
A17: Nov | C17: 0 | D17: 1 | F17: -0.8333333333 | G17: 0 | K17: Nov | L17: 0 | M17: 1 | N17: -0.8333333333 | O17: 0
A18: Dec | C18: 0 | D18: 6 | F18: -0.9333333333 | G18: 0 | K18: Dec | L18: 0 | M18: 6 | N18: -0.9333333333 | O18: 0
K19: Annual | L19: =AVERAGE(L7:L18) -> 0 | M19: =MAX(M7:M18) -> 6 | N19: =AVERAGE(N7:N18) -> -0.4072464502 | O19: =MAX(O7:O18) -> 0
J21: =+A6 -> 2023 | K21: mg/Nm3 | L21: Monthly 1/2 hourly mean | M21: Monthly 1/2 hourly maximum | N21: Monthly daily mean | O21: Monthly daily maximum
J22: A2 | K22: Jan
K23: Feb
K24: Mar
K25: Apr
K26: May
K27: Jun
K28: Jul
K29: Aug
K30: Sep
K31: Oct
K32: Nov
K33: Dec
K34: Annual | L34: =AVERAGE(L22:L33) ->  | M34: =MAX(M22:M33) -> 0 | N34: =AVERAGE(N22:N33) ->  | O34: =MAX(O22:O33) -> 0
J36: =+A6 -> 2023 | K36: mg/Nm3 | L36: Monthly 1/2 hourly mean | M36: Monthly 1/2 hourly maximum | N36: Monthly daily mean | O36: Monthly daily maximum
J37: A3 | K37: Jan
K38: Feb
K39: Mar
K40: Apr
K41: May
K42: Jun
K43: Jul
K44: Aug
K45: Sep
K46: Oct
K47: Nov
A48: Comments : | K48: Dec
K49: Annual | L49: =AVERAGE(L37:L48) ->  | M49: =MAX(M37:M48) -> 0 | N49: =AVERAGE(N37:N48) ->  | O49: =MAX(O37:O48) -> 0
J51: =+A6 -> 2023 | K51: mg/Nm3 | L51: Monthly 1/2 hourly mean | M51: Monthly 1/2 hourly maximum | N51: Monthly daily mean | O51: Monthly daily maximum
J52: A4 | K52: Jan
K53: Feb
K54: Mar
K55: Apr
K56: May
K57: Jun
K58: Jul
K59: Aug
K60: Sep
K61: Oct
K62: Nov
K63: Dec
K64: Annual | L64: =AVERAGE(L52:L63) ->  | M64: =MAX(M52:M63) -> 0 | N64: =AVERAGE(N52:N63) ->  | O64: =MAX(O52:O63) -> 0
J66: =+A6 -> 2023 | K66: mg/Nm3 | L66: Monthly 1/2 hourly mean | M66: Monthly 1/2 hourly maximum | N66: Monthly daily mean | O66: Monthly daily maximum
J67: A5 | K67: Jan
K68: Feb
K69: Mar
K70: Apr
K71: May
K72: Jun
K73: Jul
K74: Aug
K75: Sep
K76: Oct
K77: Nov
K78: Dec
K79: Annual | L79: =AVERAGE(L67:L78) ->  | M79: =MAX(M67:M78) -> 0 | N79: =AVERAGE(N67:N78) ->  | O79: =MAX(O67:O78) -> 0

Sheet TOC
A1: =+'Cover Page'!$B$29 -> Annual Performance Report 2023 | E1: =+'Cover Page'!$B$33 -> Millerhill RERC
A3: Monitoring of Total organic carbon emissions | D3: Whole Installation | G3: See Notes in Cell Q3 | J3: =+A3 -> Monitoring of Total organic carbon emissions | N3: Per Combustion Line | Q3: Notes:
Q4: User to add logic to complete Whole installation, Table A5:G18. From the data in Per Combustion Line, Table J6:O79, subject to No. of lines installed
A5: mg/Nm3 | B5: 1/2 Hourly Reference Periods | E5: Daily Reference Periods
A6: =+'Cover Page'!C39 -> 2023 | B6: 1/2 hourly TOC ELV | C6: Monthly 1/2 hourly mean | D6: Highest 1/2 hourly maximum | E6: Daily TOC ELV | F6: Monthly daily mean | G6: Highest daily maximum | J6: =+A6 -> 2023 | K6: mg/Nm3 | L6: Monthly 1/2 hourly mean | M6: Monthly 1/2 hourly maximum | N6: Monthly daily mean | O6: Monthly daily maximum
A7: Jan | B7: 20 | C7: 0 | D7: 2 | E7: 10 | F7: 0.1174193548 | G7: 0 | J7: A1 | K7: Jan | L7: 0 | M7: 2 | N7: 0.1174193548 | O7: 0
A8: Feb | B8: 20 | C8: 0 | D8: 3 | E8: 10 | F8: 0.1253571429 | G8: 0 | K8: Feb | L8: 0 | M8: 3 | N8: 0.1253571429 | O8: 0
A9: Mar | B9: 20 | C9: 0 | D9: 2 | E9: 10 | F9: 0.08193548387 | G9: 0 | K9: Mar | L9: 0 | M9: 2 | N9: 0.08193548387 | O9: 0 | Q9: Whole Installation table A5:G18:
A10: Apr | B10: 20 | C10: 0 | D10: 4 | E10: 10 | F10: 0.1022727273 | G10: 0 | K10: Apr | L10: 0 | M10: 4 | N10: 0.1022727273 | O10: 0 | Q10: Mean: for 1/2 hourly and daily periods calculate mean of values across all operational combustion lines for the month
A11: May | B11: 20 | C11: 0 | D11: 3 | E11: 10 | F11: 0.1082608696 | G11: 0 | K11: May | L11: 0 | M11: 3 | N11: 0.1082608696 | O11: 0
A12: Jun | B12: 20 | C12: 0 | D12: 7 | E12: 10 | F12: 0.08633333333 | G12: 0 | K12: Jun | L12: 0 | M12: 7 | N12: 0.08633333333 | O12: 0
A13: Jul | B13: 20 | C13: 0 | D13: 5 | E13: 10 | F13: 0.1003225806 | G13: 0 | K13: Jul | L13: 0 | M13: 5 | N13: 0.1003225806 | O13: 0 | Q13: Maximum: for 1/2 hourly and daily periods use the highest value across all operational combustion lines for the month
A14: Aug | B14: 20 | C14: 0 | D14: 4 | E14: 10 | F14: 0.1290322581 | G14: 0 | K14: Aug | L14: 0 | M14: 4 | N14: 0.1290322581 | O14: 0
A15: Sep | B15: 20 | C15: 0 | D15: 3 | E15: 10 | F15: 0.1243333333 | G15: 0 | K15: Sep | L15: 0 | M15: 3 | N15: 0.1243333333 | O15: 0
A16: Oct | B16: 20 | C16: 0 | D16: 3 | E16: 10 | F16: 0.1309677419 | G16: 0 | K16: Oct | L16: 0 | M16: 3 | N16: 0.1309677419 | O16: 0
A17: Nov | B17: 20 | C17: 0 | D17: 15 | E17: 10 | F17: 0.08566666667 | G17: 0 | K17: Nov | L17: 0 | M17: 15 | N17: 0.08566666667 | O17: 0
A18: Dec | B18: 20 | C18: 0 | D18: 1 | E18: 10 | F18: 0.105 | G18: 0 | K18: Dec | L18: 0 | M18: 1 | N18: 0.105 | O18: 0
K19: Annual | L19: =AVERAGE(L7:L18) -> 0 | M19: =MAX(M7:M18) -> 15 | N19: =AVERAGE(N7:N18) -> 0.1080751244 | O19: =MAX(O7:O18) -> 0
J21: =+A6 -> 2023 | K21: mg/Nm3 | L21: Monthly 1/2 hourly mean | M21: Monthly 1/2 hourly maximum | N21: Monthly daily mean | O21: Monthly daily maximum
J22: A2 | K22: Jan
K23: Feb
K24: Mar
K25: Apr
K26: May
K27: Jun
K28: Jul
K29: Aug
K30: Sep
K31: Oct
K32: Nov
K33: Dec
K34: Annual | L34: =AVERAGE(L22:L33) ->  | M34: =MAX(M22:M33) -> 0 | N34: =AVERAGE(N22:N33) ->  | O34: =MAX(O22:O33) -> 0
J36: =+A6 -> 2023 | K36: mg/Nm3 | L36: Monthly 1/2 hourly mean | M36: Monthly 1/2 hourly maximum | N36: Monthly daily mean | O36: Monthly daily maximum
J37: A3 | K37: Jan
K38: Feb
K39: Mar
K40: Apr
K41: May
K42: Jun
K43: Jul
K44: Aug
K45: Sep
K46: Oct
K47: Nov
A48: Comments : | K48: Dec
K49: Annual | L49: =AVERAGE(L37:L48) ->  | M49: =MAX(M37:M48) -> 0 | N49: =AVERAGE(N37:N48) ->  | O49: =MAX(O37:O48) -> 0
J51: =+A6 -> 2023 | K51: mg/Nm3 | L51: Monthly 1/2 hourly mean | M51: Monthly 1/2 hourly maximum | N51: Monthly daily mean | O51: Monthly daily maximum
J52: A4 | K52: Jan
K53: Feb
K54: Mar
K55: Apr
K56: May
K57: Jun
K58: Jul
K59: Aug
K60: Sep
K61: Oct
K62: Nov
K63: Dec
K64: Annual | L64: =AVERAGE(L52:L63) ->  | M64: =MAX(M52:M63) -> 0 | N64: =AVERAGE(N52:N63) ->  | O64: =MAX(O52:O63) -> 0
J66: =+A6 -> 2023 | K66: mg/Nm3 | L66: Monthly 1/2 hourly mean | M66: Monthly 1/2 hourly maximum | N66: Monthly daily mean | O66: Monthly daily maximum
J67: A5 | K67: Jan
K68: Feb
K69: Mar
K70: Apr
K71: May
K72: Jun
K73: Jul
K74: Aug
K75: Sep
K76: Oct
K77: Nov
K78: Dec
K79: Annual | L79: =AVERAGE(L67:L78) ->  | M79: =MAX(M67:M78) -> 0 | N79: =AVERAGE(N67:N78) ->  | O79: =MAX(O67:O78) -> 0

Sheet Particulates
A1: =+'Cover Page'!$B$29 -> Annual Performance Report 2023 | E1: =+'Cover Page'!$B$33 -> Millerhill RERC
A3: Monitoring of Particulate matter emissions | D3: Whole Installation | G3: See Notes in Cell Q3 | J3: =+A3 -> Monitoring of Particulate matter emissions | N3: Per Combustion Line | Q3: Notes:
Q4: User to add logic to complete Whole installation, Table A5:G18. From the data in Per Combustion Line, Table J6:O79, subject to No. of lines installed
A5: mg/Nm3 | B5: 1/2 Hourly Reference Periods | E5: Daily Reference Periods
A6: =+'Cover Page'!C39 -> 2023 | B6: 1/2 hourly PM ELV | C6: Monthly 1/2 hourly mean | D6: Highest 1/2 hourly maximum | E6: Daily PM ELV | F6: Monthly daily mean | G6: Highest daily maximum | J6: =+A6 -> 2023 | K6: mg/Nm3 | L6: Monthly 1/2 hourly mean | M6: Monthly 1/2 hourly maximum | N6: Monthly daily mean | O6: Monthly daily maximum
A7: Jan | B7: 30 | C7: 1 | D7: 1 | E7: 10 | F7: 0.8261290323 | G7: 1 | J7: A1 | K7: Jan | L7: 1 | M7: 1 | N7: 0.8261290323 | O7: 1
A8: Feb | B8: 30 | C8: 1 | D8: 1 | E8: 10 | F8: 0.8175 | G8: 1 | K8: Feb | L8: 1 | M8: 1 | N8: 0.8175 | O8: 1
A9: Mar | B9: 30 | C9: 1 | D9: 1 | E9: 10 | F9: 0.8287096774 | G9: 1 | K9: Mar | L9: 1 | M9: 1 | N9: 0.8287096774 | O9: 1 | Q9: Whole Installation table A5:G18:
A10: Apr | B10: 30 | C10: 1 | D10: 1 | E10: 10 | F10: 0.8268181818 | G10: 1 | K10: Apr | L10: 1 | M10: 1 | N10: 0.8268181818 | O10: 1 | Q10: Mean: for 1/2 hourly and daily periods calculate mean of values across all operational combustion lines for the month
A11: May | B11: 30 | C11: 1 | D11: 1 | E11: 10 | F11: 1.22826087 | G11: 1 | K11: May | L11: 1 | M11: 1 | N11: 1.22826087 | O11: 1
A12: Jun | B12: 30 | C12: 1 | D12: 1 | E12: 10 | F12: 0.9003333333 | G12: 1 | K12: Jun | L12: 1 | M12: 1 | N12: 0.9003333333 | O12: 1
A13: Jul | B13: 30 | C13: 1 | D13: 1 | E13: 10 | F13: 0.8267741935 | G13: 1 | K13: Jul | L13: 1 | M13: 1 | N13: 0.8267741935 | O13: 1 | Q13: Maximum: for 1/2 hourly and daily periods use the highest value across all operational combustion lines for the month
A14: Aug | B14: 30 | C14: 1 | D14: 1 | E14: 10 | F14: 0.8141935484 | G14: 1 | K14: Aug | L14: 1 | M14: 1 | N14: 0.8141935484 | O14: 1
A15: Sep | B15: 30 | C15: 1 | D15: 1 | E15: 10 | F15: 0.8056666667 | G15: 1 | K15: Sep | L15: 1 | M15: 1 | N15: 0.8056666667 | O15: 1
A16: Oct | B16: 30 | C16: 1 | D16: 1 | E16: 10 | F16: 0.8129032258 | G16: 1 | K16: Oct | L16: 1 | M16: 1 | N16: 0.8129032258 | O16: 1
A17: Nov | B17: 30 | C17: 1 | D17: 1 | E17: 10 | F17: 0.7866666667 | G17: 1 | K17: Nov | L17: 1 | M17: 1 | N17: 0.7866666667 | O17: 1
A18: Dec | B18: 30 | C18: 1 | D18: 1 | E18: 10 | F18: 0.824 | G18: 1 | K18: Dec | L18: 1 | M18: 1 | N18: 0.824 | O18: 1
K19: Annual | L19: =AVERAGE(L7:L18) -> 1 | M19: =MAX(M7:M18) -> 1 | N19: =AVERAGE(N7:N18) -> 0.8581629496 | O19: =MAX(O7:O18) -> 1
J21: =+A6 -> 2023 | K21: mg/Nm3 | L21: Monthly 1/2 hourly mean | M21: Monthly 1/2 hourly maximum | N21: Monthly daily mean | O21: Monthly daily maximum
J22: A2 | K22: Jan
K23: Feb
K24: Mar
K25: Apr
K26: May
K27: Jun
K28: Jul
K29: Aug
K30: Sep
K31: Oct
K32: Nov
K33: Dec
K34: Annual | L34: =AVERAGE(L22:L33) ->  | M34: =MAX(M22:M33) -> 0 | N34: =AVERAGE(N22:N33) ->  | O34: =MAX(O22:O33) -> 0
J36: =+A6 -> 2023 | K36: mg/Nm3 | L36: Monthly 1/2 hourly mean | M36: Monthly 1/2 hourly maximum | N36: Monthly daily mean | O36: Monthly daily maximum
J37: A3 | K37: Jan
K38: Feb
K39: Mar
K40: Apr
K41: May
K42: Jun
K43: Jul
K44: Aug
K45: Sep
K46: Oct
K47: Nov
A48: Comments : | K48: Dec
K49: Annual | L49: =AVERAGE(L37:L48) ->  | M49: =MAX(M37:M48) -> 0 | N49: =AVERAGE(N37:N48) ->  | O49: =MAX(O37:O48) -> 0
J51: =+A6 -> 2023 | K51: mg/Nm3 | L51: Monthly 1/2 hourly mean | M51: Monthly 1/2 hourly maximum | N51: Monthly daily mean | O51: Monthly daily maximum
J52: A4 | K52: Jan
K53: Feb
K54: Mar
K55: Apr
K56: May
K57: Jun
K58: Jul
K59: Aug
K60: Sep
K61: Oct
K62: Nov
K63: Dec
K64: Annual | L64: =AVERAGE(L52:L63) ->  | M64: =MAX(M52:M63) -> 0 | N64: =AVERAGE(N52:N63) ->  | O64: =MAX(O52:O63) -> 0
J66: =+A6 -> 2023 | K66: mg/Nm3 | L66: Monthly 1/2 hourly mean | M66: Monthly 1/2 hourly maximum | N66: Monthly daily mean | O66: Monthly daily maximum
J67: A5 | K67: Jan
K68: Feb
K69: Mar
K70: Apr
K71: May
K72: Jun
K73: Jul
K74: Aug
K75: Sep
K76: Oct
K77: Nov
K78: Dec
K79: Annual | L79: =AVERAGE(L67:L78) ->  | M79: =MAX(M67:M78) -> 0 | N79: =AVERAGE(N67:N78) ->  | O79: =MAX(O67:O78) -> 0

Sheet CO 0.5hourly
A1: =+'Cover Page'!$B$29 -> Annual Performance Report 2023 | E1: =+'Cover Page'!$B$33 -> Millerhill RERC
A3: Monitoring of Carbon Monoxide (half hourly) | D3: Whole Installation | G3: See Notes in Cell Q3 | J3: =+A3 -> Monitoring of Carbon Monoxide (half hourly) | N3: Per Combustion Line | Q3: Notes:
Q4: User to add logic to complete Whole installation, Table A5:G18. From the data in Per Combustion Line, Table J6:O79, subject to No. of lines installed
A5: mg/Nm3 | B5: 1/2 Hourly Reference Periods | E5: Daily Reference Periods
A6: =+'Cover Page'!C39 -> 2023 | B6: 1/2 hourly CO ELV | C6: Monthly 1/2 hourly mean | D6: Highest 1/2 hourly maximum | E6: Daily CO ELV | F6: Monthly daily mean | G6: Highest daily maximum | J6: =+A6 -> 2023 | K6: mg/Nm3 | L6: Monthly 1/2 hourly mean | M6: Monthly 1/2 hourly maximum | N6: Monthly daily mean | O6: Monthly daily maximum
A7: Jan | B7: 100 | C7: 2 | D7: 54 | E7: 50 | F7: 2.043870968 | G7: 3 | J7: A1 | K7: Jan | L7: 2 | M7: 54 | N7: 2.043870968 | O7: 3
A8: Feb | B8: =+B7 -> 100 | C8: 2 | D8: 43 | E8: =+E7 -> 50 | F8: 2.1375 | G8: 3 | K8: Feb | L8: 2 | M8: 43 | N8: 2.1375 | O8: 3
A9: Mar | B9: =+B8 -> 100 | C9: 2 | D9: 23 | E9: =+E8 -> 50 | F9: 2.11516129 | G9: 2 | K9: Mar | L9: 2 | M9: 23 | N9: 2.11516129 | O9: 2 | Q9: Whole Installation table A5:G18:
A10: Apr | B10: 100 | C10: 2 | D10: 72 | E10: 50 | F10: 2.115454545 | G10: 4 | K10: Apr | L10: 2 | M10: 72 | N10: 2.115454545 | O10: 4 | Q10: Mean: for 1/2 hourly and daily periods calculate mean of values across all operational combustion lines for the month
A11: May | B11: 100 | C11: 1 | D11: 62 | E11: 50 | F11: 1.713043478 | G11: 2 | K11: May | L11: 1 | M11: 62 | N11: 1.713043478 | O11: 2
A12: Jun | B12: 100 | C12: 2 | D12: 68 | E12: 50 | F12: 1.797333333 | G12: 3 | K12: Jun | L12: 2 | M12: 68 | N12: 1.797333333 | O12: 3
A13: Jul | B13: 100 | C13: 2 | D13: 144 | E13: 50 | F13: 2.016774194 | G13: 5 | K13: Jul | L13: 2 | M13: 144 | N13: 2.016774194 | O13: 5 | Q13: Maximum: for 1/2 hourly and daily periods use the highest value across all operational combustion lines for the month
A14: Aug | B14: 100 | C14: 2 | D14: 54 | E14: 50 | F14: 2.447096774 | G14: 3 | K14: Aug | L14: 2 | M14: 54 | N14: 2.447096774 | O14: 3
A15: Sep | B15: 100 | C15: 3 | D15: 49 | E15: 50 | F15: 2.579 | G15: 4 | K15: Sep | L15: 3 | M15: 49 | N15: 2.579 | O15: 4
A16: Oct | B16: 100 | C16: 3 | D16: 51 | E16: 50 | F16: 2.622580645 | G16: 4 | K16: Oct | L16: 3 | M16: 51 | N16: 2.622580645 | O16: 4
A17: Nov | B17: 100 | C17: 3 | D17: 438 | E17: 50 | F17: 3.038333333 | G17: 14 | K17: Nov | L17: 3 | M17: 438 | N17: 3.038333333 | O17: 14
A18: Dec | B18: 100 | C18: 3 | D18: 58 | E18: 50 | F18: 2.591333333 | G18: 4 | K18: Dec | L18: 3 | M18: 58 | N18: 2.591333333 | O18: 4
K19: Annual | L19: =AVERAGE(L7:L18) -> 2.25 | M19: =MAX(M7:M18) -> 438 | N19: =AVERAGE(N7:N18) -> 2.268123491 | O19: =MAX(O7:O18) -> 14
J21: =+A6 -> 2023 | K21: mg/Nm3 | L21: Monthly 1/2 hourly mean | M21: Monthly 1/2 hourly maximum | N21: Monthly daily mean | O21: Monthly daily maximum
J22: A2 | K22: Jan
K23: Feb
K24: Mar
K25: Apr
K26: May
K27: Jun
K28: Jul
K29: Aug
K30: Sep
K31: Oct
K32: Nov
K33: Dec
K34: Annual | L34: =AVERAGE(L22:L33) ->  | M34: =MAX(M22:M33) -> 0 | N34: =AVERAGE(N22:N33) ->  | O34: =MAX(O22:O33) -> 0
J36: =+A6 -> 2023 | K36: mg/Nm3 | L36: Monthly 1/2 hourly mean | M36: Monthly 1/2 hourly maximum | N36: Monthly daily mean | O36: Monthly daily maximum
J37: A3 | K37: Jan
K38: Feb
K39: Mar
K40: Apr
K41: May
K42: Jun
K43: Jul
K44: Aug
K45: Sep
K46: Oct
K47: Nov
A48: Comments : | K48: Dec
K49: Annual | L49: =AVERAGE(L37:L48) ->  | M49: =MAX(M37:M48) -> 0 | N49: =AVERAGE(N37:N48) ->  | O49: =MAX(O37:O48) -> 0
J51: =+A6 -> 2023 | K51: mg/Nm3 | L51: Monthly 1/2 hourly mean | M51: Monthly 1/2 hourly maximum | N51: Monthly daily mean | O51: Monthly daily maximum
J52: A4 | K52: Jan
K53: Feb
K54: Mar
K55: Apr
K56: May
K57: Jun
K58: Jul
K59: Aug
K60: Sep
K61: Oct
K62: Nov
K63: Dec
K64: Annual | L64: =AVERAGE(L52:L63) ->  | M64: =MAX(M52:M63) -> 0 | N64: =AVERAGE(N52:N63) ->  | O64: =MAX(O52:O63) -> 0
J66: =+A6 -> 2023 | K66: mg/Nm3 | L66: Monthly 1/2 hourly mean | M66: Monthly 1/2 hourly maximum | N66: Monthly daily mean | O66: Monthly daily maximum
J67: A5 | K67: Jan
K68: Feb
K69: Mar
K70: Apr
K71: May
K72: Jun
K73: Jul
K74: Aug
K75: Sep
K76: Oct
K77: Nov
K78: Dec
K79: Annual | L79: =AVERAGE(L67:L78) ->  | M79: =MAX(M67:M78) -> 0 | N79: =AVERAGE(N67:N78) ->  | O79: =MAX(O67:O78) -> 0

Sheet CO 95% 10 min
A1: =+'Cover Page'!$B$29 -> Annual Performance Report 2023 | E1: =+'Cover Page'!$B$33 -> Millerhill RERC
A3: Monitoring of Carbon Monoxide (10-minute avg) | E3: Whole Installation | H3: See Notes in Cell S3 | J3: =+A3 -> Monitoring of Carbon Monoxide (10-minute avg) | O3: Per Combustion Line | Q3: Notes: | S3: Notes:
S4: User to add logic to complete Whole installation, Table A5:H18. From the data in Per Combustion Line, Table K6:Q79, subject to No. of lines installed
A5: mg/Nm3 | B5: 10-minute Reference Periods | F5: Daily Reference Periods
A6: =+'Cover Page'!C39 -> 2023 | B6: 95%ile 10-min avg CO ELV | C6: 95%ile 10-min avg maximum | D6: Monthly CO 10-min avg mean | E6: 10-min avg maximum | F6: Daily CO ELV | G6: Monthly daily mean | H6: Highest daily maximum | K6: =+A6 -> 2023 | L6: mg/Nm3 | M6: 95%ile 10-min avg maximum | N6: Monthly CO 10-min avg mean | O6: 10-min avg maximum | P6: Monthly daily mean | Q6: Monthly daily maximum
A7: Jan | B7: 150 | C7: 2.86 | E7: 159.43 | F7: 50 | G7: 2.043870968 | H7: 3 | K7: A1 | L7: Jan | M7: 2.86 | O7: 159.43 | P7: 2.043870968 | Q7: 3
A8: Feb | B8: =+B7 -> 150 | C8: 2.75 | E8: 120.97 | F8: =+F7 -> 50 | G8: 2.1375 | H8: 3 | L8: Feb | M8: 2.75 | O8: 120.97 | P8: 2.1375 | Q8: 3
A9: Mar | B9: =+B8 -> 150 | C9: 2.8 | E9: 69.58 | F9: =+F8 -> 50 | G9: 2.11516129 | H9: 2 | L9: Mar | M9: 2.8 | O9: 69.58 | P9: 2.11516129 | Q9: 2 | S9: Whole Installation table A5:H18:
A10: Apr | B10: 150 | C10: 2.88 | E10: 190.24 | F10: 50 | G10: 2.115454545 | H10: 4 | L10: Apr | M10: 2.88 | O10: 190.24 | P10: 2.115454545 | Q10: 4 | S10: Mean: for 10-min and daily periods use average of all operational combustion lines.
A11: May | B11: 150 | C11: 2.74 | E11: 184.38 | F11: 50 | G11: 1.713043478 | H11: 2 | L11: May | M11: 2.74 | O11: 184.38 | P11: 1.713043478 | Q11: 2
A12: Jun | B12: 150 | C12: 2.46 | E12: 234.61 | F12: 50 | G12: 1.797333333 | H12: 3 | L12: Jun | M12: 2.46 | O12: 234.61 | P12: 1.797333333 | Q12: 3
A13: Jul | B13: 150 | C13: 2.8 | E13: 460.15 | F13: 50 | G13: 2.016774194 | H13: 5 | L13: Jul | M13: 2.8 | O13: 460.15 | P13: 2.016774194 | Q13: 5 | S13: Maximum: for 10-min and daily periods use the highest of all operational combustion lines in any month.
A14: Aug | B14: 150 | C14: 3.26 | E14: 157.29 | F14: 50 | G14: 2.447096774 | H14: 3 | L14: Aug | M14: 3.26 | O14: 157.29 | P14: 2.447096774 | Q14: 3
A15: Sep | B15: 150 | C15: 3.36 | E15: 151.8 | F15: 50 | G15: 2.579 | H15: 4 | L15: Sep | M15: 3.36 | O15: 151.8 | P15: 2.579 | Q15: 4
A16: Oct | B16: 150 | C16: 3.38 | E16: 147.93 | F16: 50 | G16: 2.622580645 | H16: 4 | L16: Oct | M16: 3.38 | O16: 147.93 | P16: 2.622580645 | Q16: 4
A17: Nov | B17: 150 | C17: 3.5 | E17: 1246.99 | F17: 50 | G17: 3.038333333 | H17: 14 | L17: Nov | M17: 3.5 | O17: 1246.99 | P17: 3.038333333 | Q17: 14
A18: Dec | B18: 150 | C18: 3.3 | E18: 180.98 | F18: 50 | G18: 2.591333333 | H18: 4 | L18: Dec | M18: 3.3 | O18: 180.98 | P18: 2.591333333 | Q18: 4
L19: Annual | M19: =AVERAGE(M7:M18) -> 3.0075 | O19: =MAX(O7:O18) -> 1246.99 | P19: =AVERAGE(P7:P18) -> 2.268123491 | Q19: =MAX(Q7:Q18) -> 14
K21: =+A6 -> 2023 | L21: mg/Nm3 | M21: 95%ile 10-min avg maximum | N21: Monthly CO 10-min avg mean | O21: 10-min avg maximum | P21: Monthly daily mean | Q21: Monthly daily maximum
K22: A2 | L22: Jan
L23: Feb
L24: Mar
L25: Apr
L26: May
L27: Jun
L28: Jul
L29: Aug
L30: Sep
L31: Oct
L32: Nov
L33: Dec
L34: Annual | M34: =AVERAGE(M22:M33) ->  | O34: =MAX(O22:O33) -> 0 | P34: =AVERAGE(P22:P33) ->  | Q34: =MAX(Q22:Q33) -> 0
K36: =+A6 -> 2023 | L36: mg/Nm3 | M36: 95%ile 10-min avg maximum | N36: Monthly CO 10-min avg mean | O36: 10-min avg maximum | P36: Monthly daily mean | Q36: Monthly daily maximum
K37: A3 | L37: Jan
L38: Feb
L39: Mar
L40: Apr
L41: May
L42: Jun
L43: Jul
L44: Aug
L45: Sep
L46: Oct
L47: Nov
A48: Comments : | L48: Dec
A49: Environment Agency explanatory note: The 10-minute average ELV is based on the “95th percentile”. In this case this means that 95% of the 10 minute averages in the relevant 24-hour period (i.e. 137) must be below 150 mg/Nm3, and 5% (i.e. 7) are allowed to be any value above 150 mg/Nm3. Whilst we expect operators to minimise CO emissions at all times, it is perfectly acceptable for the value of the maximum 10-minute average to be above 150 mg/Nm3, provided the 95th percentile ELV has been met for that period. | L49: Annual | M49: =AVERAGE(M37:M48) ->  | O49: =MAX(O37:O48) -> 0 | P49: =AVERAGE(P37:P48) ->  | Q49: =MAX(Q37:Q48) -> 0
K51: =+A6 -> 2023 | L51: mg/Nm3 | M51: 95%ile 10-min avg maximum | N51: Monthly CO 10-min avg mean | O51: 10-min avg maximum | P51: Monthly daily mean | Q51: Monthly daily maximum
K52: A4 | L52: Jan
L53: Feb
L54: Mar
L55: Apr
L56: May
L57: Jun
L58: Jul
L59: Aug
L60: Sep
L61: Oct
L62: Nov
L63: Dec
L64: Annual | M64: =AVERAGE(M52:M63) ->  | O64: =MAX(O52:O63) -> 0 | P64: =AVERAGE(P52:P63) ->  | Q64: =MAX(Q52:Q63) -> 0
K66: =+A6 -> 2023 | L66: mg/Nm3 | M66: 95%ile 10-min avg maximum | N66: Monthly CO 10-min avg mean | O66: 10-min avg maximum | P66: Monthly daily mean | Q66: Monthly daily maximum
K67: A5 | L67: Jan
L68: Feb
L69: Mar
L70: Apr
L71: May
L72: Jun
L73: Jul
L74: Aug
L75: Sep
L76: Oct
L77: Nov
L78: Dec
L79: Annual | M79: =AVERAGE(M67:M78) ->  | O79: =MAX(O67:O78) -> 0 | P79: =AVERAGE(P67:P78) ->  | Q79: =MAX(Q67:Q78) -> 0

Sheet NH3
A1: =+'Cover Page'!$B$29 -> Annual Performance Report 2023 | E1: =+'Cover Page'!$B$33 -> Millerhill RERC
A3: Monitoring of Ammnonia emissions | D3: Whole Installation | G3: See Notes in Cell Q3 | J3: =+A3 -> Monitoring of Ammnonia emissions | N3: Per Combustion Line | Q3: Notes:
Q4: User to add logic to complete Whole installation, Table A5:G18. From the data in Per Combustion Line, Table J6:O79, subject to No. of lines installed
A5: mg/Nm3 | B5: 1/2 Hourly Reference Periods | E5: Daily Reference Periods
A6: =+'Cover Page'!C39 -> 2023 | B6: 1/2 hourly NH3 ELV | C6: Monthly 1/2 hourly mean | D6: Highest 1/2 hourly maximum | E6: Daily NH3 ELV | F6: Monthly daily mean | G6: Highest daily maximum | J6: =+A6 -> 2023 | K6: mg/Nm3 | L6: Monthly 1/2 hourly mean | M6: Monthly 1/2 hourly maximum | N6: Monthly daily mean | O6: Monthly daily maximum
A7: Jan | B7: 0 | C7: 0 | D7: 1 | E7: 10 | F7: 0.2248387097 | G7: 0 | J7: A1 | K7: Jan | L7: 0 | M7: 1 | N7: 0.2248387097 | O7: 0
A8: Feb | B8: =+B7 -> 0 | C8: 0 | D8: 1 | E8: =+E7 -> 10 | F8: 0.1935714286 | G8: 0 | K8: Feb | L8: 0 | M8: 1 | N8: 0.1935714286 | O8: 0
A9: Mar | B9: =+B8 -> 0 | C9: 0 | D9: 0 | E9: =+E8 -> 10 | F9: 0.17 | G9: 0 | K9: Mar | L9: 0 | M9: 0 | N9: 0.17 | O9: 0 | Q9: Whole Installation table A5:G18:
A10: Apr | B10: 0 | C10: 0 | D10: 1 | E10: 10 | F10: 0.1945454545 | G10: 0 | K10: Apr | L10: 0 | M10: 1 | N10: 0.1945454545 | O10: 0 | Q10: Mean: for 1/2 hourly and daily periods calculate mean of values across all operational combustion lines for the month
A11: May | B11: 0 | C11: 0 | D11: 1 | E11: 10 | F11: 0.2913043478 | G11: 0 | K11: May | L11: 0 | M11: 1 | N11: 0.2913043478 | O11: 0
A12: Jun | B12: 0 | C12: 0 | D12: 1 | E12: 10 | F12: 0.1766666667 | G12: 0 | K12: Jun | L12: 0 | M12: 1 | N12: 0.1766666667 | O12: 0
A13: Jul | B13: 0 | C13: 0 | D13: 0 | E13: 10 | F13: 0.02548387097 | G13: 0 | K13: Jul | L13: 0 | M13: 0 | N13: 0.02548387097 | O13: 0 | Q13: Maximum: for 1/2 hourly and daily periods use the highest value across all operational combustion lines for the month
A14: Aug | B14: 0 | C14: 0 | D14: 1 | E14: 10 | F14: 0.02935483871 | G14: 0 | K14: Aug | L14: 0 | M14: 1 | N14: 0.02935483871 | O14: 0
A15: Sep | B15: 0 | C15: 0 | D15: 0 | E15: 10 | F15: 0.1383333333 | G15: 0 | K15: Sep | L15: 0 | M15: 0 | N15: 0.1383333333 | O15: 0
A16: Oct | B16: 0 | C16: 0 | D16: 3 | E16: 10 | F16: 0.2351612903 | G16: 0 | K16: Oct | L16: 0 | M16: 3 | N16: 0.2351612903 | O16: 0
A17: Nov | B17: 0 | C17: 0 | D17: 1 | E17: 10 | F17: 0.222 | G17: 0 | K17: Nov | L17: 0 | M17: 1 | N17: 0.222 | O17: 0
A18: Dec | B18: 0 | C18: 0 | D18: 1 | E18: 10 | F18: 0.1953333333 | G18: 0 | K18: Dec | L18: 0 | M18: 1 | N18: 0.1953333333 | O18: 0
K19: Annual | L19: =AVERAGE(L7:L18) -> 0 | M19: =MAX(M7:M18) -> 3 | N19: =AVERAGE(N7:N18) -> 0.1747161062 | O19: =MAX(O7:O18) -> 0
J21: =+A6 -> 2023 | K21: mg/Nm3 | L21: Monthly 1/2 hourly mean | M21: Monthly 1/2 hourly maximum | N21: Monthly daily mean | O21: Monthly daily maximum
J22: A2 | K22: Jan
K23: Feb
K24: Mar
K25: Apr
K26: May
K27: Jun
K28: Jul
K29: Aug
K30: Sep
K31: Oct
K32: Nov
K33: Dec
K34: Annual | L34: =AVERAGE(L22:L33) ->  | M34: =MAX(M22:M33) -> 0 | N34: =AVERAGE(N22:N33) ->  | O34: =MAX(O22:O33) -> 0
J36: =+A6 -> 2023 | K36: mg/Nm3 | L36: Monthly 1/2 hourly mean | M36: Monthly 1/2 hourly maximum | N36: Monthly daily mean | O36: Monthly daily maximum
J37: A3 | K37: Jan
K38: Feb
K39: Mar
K40: Apr
K41: May
K42: Jun
K43: Jul
K44: Aug
K45: Sep
K46: Oct
K47: Nov
A48: Comments : | K48: Dec
A49: An indicated ELV value of zero in the table above means that no ammonia limit is set in the permit. | K49: Annual | L49: =AVERAGE(L37:L48) ->  | M49: =MAX(M37:M48) -> 0 | N49: =AVERAGE(N37:N48) ->  | O49: =MAX(O37:O48) -> 0
J51: =+A6 -> 2023 | K51: mg/Nm3 | L51: Monthly 1/2 hourly mean | M51: Monthly 1/2 hourly maximum | N51: Monthly daily mean | O51: Monthly daily maximum
J52: A4 | K52: Jan
K53: Feb
K54: Mar
K55: Apr
K56: May
K57: Jun
K58: Jul
K59: Aug
K60: Sep
K61: Oct
K62: Nov
K63: Dec
K64: Annual | L64: =AVERAGE(L52:L63) ->  | M64: =MAX(M52:M63) -> 0 | N64: =AVERAGE(N52:N63) ->  | O64: =MAX(O52:O63) -> 0
J66: =+A6 -> 2023 | K66: mg/Nm3 | L66: Monthly 1/2 hourly mean | M66: Monthly 1/2 hourly maximum | N66: Monthly daily mean | O66: Monthly daily maximum
J67: A5 | K67: Jan
K68: Feb
K69: Mar
K70: Apr
K71: May
K72: Jun
K73: Jul
K74: Aug
K75: Sep
K76: Oct
K77: Nov
K78: Dec
K79: Annual | L79: =AVERAGE(L67:L78) ->  | M79: =MAX(M67:M78) -> 0 | N79: =AVERAGE(N67:N78) ->  | O79: =MAX(O67:O78) -> 0
